bitfinex-derivatives/quotes_BTCF0:USTF0_20250508
["timestamp","ask_amount","ask_price","bid_price","bid_amount"]
[1746719071268,1.2900868,101360.0,101350.0,0.00200001]
[1746719071661,1.2910868,101360.0,101350.0,1e-08]
[1746719071858,2.06125174,101360.0,101350.0,1e-08]
[1746719072060,1.6047868,101360.0,101350.0,0.19730631]
[1746719072271,1.87395174,101360.0,101350.0,1e-08]
[1746719072470,2.15991574,101360.0,101350.0,1e-08]
[1746719072867,1.8907508,101360.0,101350.0,1e-08]
[1746719073065,2.15991574,101360.0,101350.0,1e-08]
[1746719073666,1.7920868,101360.0,101350.0,1e-08]
[1746719073866,2.06125174,101360.0,101350.0,1e-08]
[1746719074379,2.06125174,101360.0,101320.0,0.00851429]
[1746719074380,0.0493325,101340.0,101320.0,0.00851429]
[1746719074573,0.46651014,101330.0,101320.0,0.38528689]
[1746719074777,1.29832983,101330.0,101320.0,0.19918689]
[1746719074973,0.6074657,101340.0,101320.0,0.46570945]
[1746719075274,0.3608,101330.0,101320.0,0.78289879]
[1746719075475,0.3608,101330.0,101320.0,0.52073385]
[1746719076070,0.3648,101330.0,101320.0,0.52073385]
[1746719076468,0.5621452,101330.0,101320.0,0.52073385]
[1746719076865,0.3648,101330.0,101320.0,0.59385459]
[1746719077070,0.004,101330.0,101320.0,0.68421929]
[1746719077276,0.5621452,101330.0,101320.0,0.41505435]
[1746719077572,0.3648,101330.0,101320.0,0.41510037]
[1746719077773,0.004,101330.0,101320.0,0.41510037]
[1746719077979,0.3608,101330.0,101320.0,0.41510037]
[1746719078277,0.5581452,101330.0,101320.0,0.21024585]
[1746719078467,0.82731014,101330.0,101320.0,0.00098689]
[1746719078670,0.9502452,101330.0,101320.0,0.00098689]
[1746719079079,1.21941014,101330.0,101320.0,0.00098689]
[1746719079277,0.9502452,101330.0,101320.0,0.00098689]
[1746719079575,0.1973647,101320.0,101310.0,9e-08]
[1746719079780,1.21372964,101320.0,101310.0,9e-08]
[1746719080078,1.21381427,101320.0,101310.0,9e-08]
[1746719080281,1.21372964,101320.0,101310.0,9e-08]
[1746719080575,1.0432687,101320.0,101310.0,9e-08]
[1746719080778,0.9505647,101320.0,101310.0,0.00100009]
[1746719081375,1.32443364,101320.0,101310.0,0.00100009]
[1746719082175,1.72572964,101320.0,101310.0,0.00100009]
[1746719082374,0.1973842,101310.0,101300.0,0.10098713]
[1746719082577,0.7417842,101310.0,101300.0,0.49689083]
[1746719082777,1.19724914,101310.0,101300.0,0.10098713]
[1746719083177,0.9280842,101310.0,101300.0,0.10098713]
[1746719083677,0.7457842,101310.0,101300.0,0.29839083]
[1746719083882,1.2457842,101310.0,101300.0,0.29568713]
[1746719084078,1.4320842,101310.0,101300.0,0.49309083]
[1746719084282,1.4803045,101310.0,101300.0,0.49309083]
[1746719084485,1.2940045,101310.0,101300.0,0.49309083]
[1746719084678,0.9090203,101310.0,101300.0,0.49309083]
[1746719085077,0.5482203,101310.0,101300.0,0.50054705]
[1746719085273,0.6064045,101310.0,101300.0,0.50054705]
[1746719085471,0.6064045,101310.0,101300.0,0.49309083]
[1746719085873,0.0482203,101310.0,101300.0,0.49309083]
[1746719086078,0.4090203,101310.0,101300.0,0.49309083]
[1746719086381,0.0482203,101310.0,101300.0,0.76225577]
[1746719086580,0.0482203,101310.0,101300.0,0.49309083]
[1746719086981,0.0482203,101310.0,101300.0,1.21096777]
[1746719087180,0.3608,101330.0,101320.0,0.2960397]
[1746719087384,0.3608,101330.0,101320.0,0.61454574]
[1746719087585,0.65828804,101340.0,101330.0,0.1973452]
[1746719087785,1.01908804,101340.0,101330.0,0.3940452]
[1746719088083,1.01908804,101340.0,101330.0,0.1967]
[1746719088286,1.01908804,101340.0,101330.0,0.3940452]
[1746719088489,1.01908804,101340.0,101330.0,0.1967]
[1746719088683,1.40258804,101340.0,101330.0,0.3940452]
[1746719089079,0.3688,101340.0,101330.0,0.66421014]
[1746719089678,0.002,101350.0,101340.0,0.1973258]
[1746719089989,0.3628,101350.0,101340.0,0.3824258]
[1746719090181,0.3628,101350.0,101340.0,0.5504258]
[1746719090377,0.002,101350.0,101340.0,0.81959074]
[1746719090684,0.3628,101350.0,101340.0,0.5504258]
[1746719090887,0.5641063,101350.0,101340.0,0.168]
[1746719091086,0.7459063,101350.0,101340.0,0.5504258]
[1746719091285,0.7459063,101350.0,101340.0,0.3824258]
[1746719091590,0.2033063,101350.0,101340.0,0.3824258]
[1746719091786,0.3668,101350.0,101340.0,0.3824258]
[1746719091987,0.006,101350.0,101340.0,0.7432258]
[1746719092189,0.006,101350.0,101340.0,0.5504258]
[1746719092489,0.006,101350.0,101340.0,1.10286274]
[1746719092684,0.006,101350.0,101340.0,0.5377]
[1746719092685,0.5641063,101350.0,101340.0,0.5377]
[1746719092880,0.7607063,101350.0,101340.0,0.5377]
[1746719093084,1.21657124,101350.0,101340.0,0.3697]
[1746719093288,1.21657124,101350.0,101340.0,0.1851]
[1746719093488,0.9474063,101350.0,101340.0,0.3824258]
[1746719093677,0.7607063,101350.0,101340.0,0.3824258]
[1746719093883,0.9474063,101350.0,101340.0,0.1997361]
[1746719094079,0.9474063,101350.0,101340.0,0.3970619]
[1746719094284,0.9474063,101350.0,101340.0,0.3834361]
[1746719094486,0.94749093,101350.0,101340.0,0.1997361]
[1746719094788,1.21657124,101350.0,101340.0,0.0146361]
[1746719094990,0.9474063,101350.0,101340.0,0.0146361]
[1746719095186,0.9474063,101350.0,101340.0,0.66282684]
[1746719095187,0.3668,101350.0,101340.0,0.66282684]
[1746719095489,0.5641063,101350.0,101340.0,0.5773619]
[1746719095689,0.56418777,101350.0,101340.0,0.5773619]
[1746719095880,0.5641063,101350.0,101340.0,0.5773619]
[1746719096082,0.76059093,101350.0,101340.0,0.5773619]
[1746719096280,0.3668734,101350.0,101340.0,0.5773619]
[1746719096486,0.3668,101350.0,101340.0,0.5773619]
[1746719096996,0.3668,101350.0,101340.0,0.84652684]
[1746719097491,0.3668,101350.0,101340.0,0.86180062]
[1746719097689,0.3668,101350.0,101340.0,0.84652684]
[1746719097891,0.3668,101350.0,101340.0,0.5773619]
[1746719098093,0.3668,101350.0,101340.0,1.01452684]
[1746719098094,0.5641063,101350.0,101340.0,1.01452684]
[1746719098283,0.5641063,101350.0,101340.0,0.5480361]
[1746719098486,0.5641063,101350.0,101340.0,0.7453619]
[1746719098787,0.9544063,101350.0,101340.0,0.7453619]
[1746719098987,1.22357124,101350.0,101340.0,0.5480361]
[1746719099187,1.22357124,101350.0,101340.0,0.5773619]
[1746719099188,0.9544063,101350.0,101340.0,0.5773619]
[1746719100292,0.7571,101350.0,101340.0,0.5773619]
[1746719100596,0.006,101350.0,101340.0,0.84652684]
[1746719100794,0.006,101350.0,101340.0,1.22210729]
[1746719100992,0.3608,101360.0,101340.0,1.22210729]
[1746719100993,0.36228156,101370.0,101360.0,0.1972868]
[1746719101292,1e-07,101380.0,101370.0,0.1972674]
[1746719101499,0.07743904,101400.0,101390.0,0.1972285]
[1746719101681,0.07378087,101410.0,101400.0,0.197209]
[1746719101989,0.0738655,101410.0,101400.0,0.39308945]
[1746719102195,0.2710551,101410.0,101400.0,0.57738945]
[1746719102496,0.63177047,101410.0,101400.0,0.57738945]
[1746719102882,0.63177047,101410.0,101400.0,0.3654]
[1746719103086,0.63177047,101410.0,101400.0,0.1811]
[1746719103087,1.02687047,101410.0,101400.0,0.1811]
[1746719103390,0.8296551,101410.0,101400.0,0.382309]
[1746719103587,0.82957047,101410.0,101400.0,0.1891]
[1746719103785,1.0269551,101410.0,101400.0,0.1891]
[1746719103990,1.0269551,101410.0,101400.0,0.006]
[1746719103991,1.29603541,101410.0,101400.0,0.006]
[1746719104295,1.37548648,101410.0,101400.0,0.006]
[1746719104493,0.1972285,101390.0,101380.0,0.1877]
[1746719104698,0.1972479,101380.0,101370.0,0.00197292]
[1746719104895,0.5580479,101380.0,101370.0,0.21382105]
[1746719105089,0.5580479,101380.0,101370.0,0.49840599]
[1746719105090,0.5487,101380.0,101370.0,0.49840599]
[1746719105395,0.3608,101380.0,101370.0,0.49840599]
[1746719105596,0.3608,101380.0,101370.0,0.60684105]
[1746719105995,0.5580479,101380.0,101370.0,0.03597365]
[1746719106186,0.738,101380.0,101370.0,0.42094105]
[1746719106498,0.738,101380.0,101370.0,0.61584105]
[1746719106499,0.9352479,101380.0,101370.0,0.61584105]
[1746719106794,0.3608,101390.0,101380.0,0.1972479]
[1746719107091,0.5580285,101390.0,101380.0,0.60484863]
[1746719107298,0.7459285,101390.0,101380.0,0.40760073]
[1746719107490,1.20099344,101390.0,101380.0,0.03000073]
[1746719107795,0.1972479,101380.0,101370.0,0.00697292]
[1746719107999,1.29365684,101380.0,101370.0,0.00697292]
[1746719108693,1.29365684,101380.0,101370.0,0.00197292]
[1746719109397,1.29565684,101380.0,101370.0,0.00197292]
[1746719109592,1.29665684,101380.0,101370.0,0.00197292]
[1746719110196,1.0274919,101380.0,101370.0,0.00197292]
[1746719110396,1.29665684,101380.0,101370.0,0.00197292]
[1746719110697,1.79665684,101380.0,101370.0,0.00197292]
[1746719110888,0.1972868,101360.0,101350.0,0.00098665]
[1746719111092,1.18805174,101360.0,101350.0,0.00098665]
[1746719111294,0.9188868,101360.0,101350.0,0.00098665]
[1746719111486,1.3119868,101360.0,101350.0,0.00098665]
[1746719111686,1.58115174,101360.0,101350.0,0.00098665]
[1746719111898,1.77445174,101360.0,101350.0,0.00098665]
[1746719112098,0.1973063,101350.0,101340.0,0.00197351]
[1746719112293,1.22037124,101350.0,101340.0,0.00197351]
[1746719112494,0.1973452,101330.0,101320.0,0.00098689]
[1746719112694,1.18811014,101330.0,101320.0,0.00098689]
[1746719113096,1.58121014,101330.0,101320.0,0.00098689]
[1746719113689,1.58121014,101330.0,101310.0,0.00197409]
[1746719113690,0.1973647,101320.0,101310.0,0.00197409]
[1746719113998,1.21452964,101320.0,101310.0,0.00197409]
[1746719114190,0.9453647,101320.0,101310.0,0.00197409]
[1746719114393,1.21460687,101320.0,101310.0,0.00197409]
[1746719114589,1.21461427,101320.0,101310.0,0.00197409]
[1746719114798,1.21452964,101320.0,101310.0,0.00197409]
[1746719114997,1.21461427,101320.0,101310.0,0.00197409]
[1746719115396,1.21452964,101320.0,101310.0,0.00197409]
[1746719116002,0.748,101320.0,101310.0,0.19935829]
[1746719116200,0.9453647,101320.0,101310.0,0.19737409]
[1746719116400,0.748,101320.0,101310.0,0.39475829]
[1746719116608,0.3882,101320.0,101310.0,0.39475829]
[1746719116805,0.004,101320.0,101310.0,0.84772323]
[1746719117103,0.3608,101340.0,101330.0,0.1973452]
[1746719117603,0.1973452,101330.0,101320.0,0.5709604]
[1746719117901,0.7532452,101330.0,101320.0,0.3736]
[1746719118099,0.7532452,101330.0,101320.0,0.5709647]
[1746719118803,0.9514452,101330.0,101320.0,0.3736]
[1746719119200,1.22061014,101330.0,101320.0,0.001]
[1746719119506,1.22068855,101330.0,101320.0,0.001]
[1746719119811,1.22061014,101330.0,101320.0,0.001]
[1746719120209,0.7541,101330.0,101320.0,0.1983647]
[1746719120512,0.7532452,101330.0,101320.0,0.1983647]
[1746719120806,1.02241014,101330.0,101320.0,0.001]
[1746719121001,1.20541014,101330.0,101320.0,0.001]
[1746719121197,1.30410214,101330.0,101320.0,0.0164286]
[1746719121398,0.1973842,101310.0,101300.0,0.10098713]
[1746719121599,0.5581842,101310.0,101300.0,0.10098713]
[1746719121796,1.29786114,101310.0,101300.0,0.10098713]
[1746719122001,1.19914914,101310.0,101300.0,0.10098713]
[1746719122209,0.1974232,101290.0,101280.0,7e-08]
[1746719122413,1.18818814,101290.0,101280.0,7e-08]
[1746719122911,1.3043232,101290.0,101280.0,7e-08]
[1746719123103,1.57348814,101290.0,101280.0,7e-08]
[1746719123305,1.57348814,101290.0,101280.0,0.00500007]
[1746719123707,1.1069,101290.0,101280.0,0.20244277]
[1746719123912,1.3043232,101290.0,101280.0,0.20244277]
[1746719124212,1.3043232,101290.0,101280.0,0.39884277]
[1746719124412,1.3043232,101290.0,101280.0,0.58944277]
[1746719124712,1.3043232,101290.0,101280.0,0.20140007]
[1746719125006,1.3043232,101290.0,101280.0,0.19740007]
[1746719125214,1.57448814,101290.0,101280.0,0.00600007]
[1746719125909,1.57348814,101290.0,101280.0,0.00100007]
[1746719126212,1.57548814,101290.0,101280.0,7e-08]
[1746719126715,1.67622014,101290.0,101280.0,7e-08]
[1746719127913,2.17822014,101290.0,101280.0,7e-08]
[1746719128411,2.17830477,101290.0,101280.0,7e-08]
[1746719128610,2.17822014,101290.0,101280.0,7e-08]
[1746719131516,1.9090552,101290.0,101280.0,7e-08]
[1746719131718,2.17822014,101290.0,101280.0,7e-08]
[1746719132215,2.17822014,101290.0,101280.0,0.00036594]
[1746719132605,2.17822014,101290.0,101280.0,4e-08]
[1746719134221,0.1974427,101280.0,101270.0,2e-08]
[1746719134414,0.1974817,101260.0,101250.0,0.19806288]
[1746719134620,0.9190817,101260.0,101250.0,0.00296288]
[1746719134809,1.56573127,101260.0,101250.0,0.00296288]
[1746719135009,1.29656633,101260.0,101250.0,0.00296288]
[1746719135314,1.66440664,101260.0,101250.0,0.00296288]
[1746719135808,1.66449127,101260.0,101250.0,8e-08]
[1746719136116,1.66440664,101260.0,101250.0,8e-08]
[1746719136413,0.26916494,101240.0,101220.0,0.00296371]
[1746719136618,1.38260514,101230.0,101220.0,0.18716371]
[1746719136913,1.2945402,101230.0,101220.0,0.18716371]
[1746719137112,1.56370514,101230.0,101220.0,0.18716371]
[1746719137320,0.1975792,101210.0,101200.0,0.10098811]
[1746719137619,1.18834414,101210.0,101200.0,0.48108811]
[1746719137916,0.9191792,101210.0,101200.0,0.48108811]
[1746719138113,1.55154414,101210.0,101200.0,0.48108811]
[1746719138307,1.55154414,101210.0,101200.0,0.10098811]
[1746719138308,1.65035214,101210.0,101200.0,0.10098811]
[1746719138506,1.65035214,101210.0,101190.0,0.00197643]
[1746719138507,0.1975988,101200.0,101190.0,0.00197643]
[1746719138716,1.20486374,101200.0,101190.0,0.18997643]
[1746719139819,1.20486374,101200.0,101190.0,0.19497643]
[1746719140319,0.7535988,101200.0,101190.0,0.19497643]
[1746719140516,1.02276374,101200.0,101190.0,0.38727643]
[1746719140724,1.21666374,101200.0,101190.0,0.38727643]
[1746719140917,1.02676374,101200.0,101190.0,0.38727643]
[1746719141218,0.5623988,101200.0,101190.0,0.38727643]
[1746719141526,0.3608,101220.0,101210.0,0.1975792]
[1746719141714,0.00148315,101230.0,101220.0,0.1975597]
[1746719141914,0.00148315,101230.0,101220.0,0.5802597]
[1746719142113,0.68403032,101250.0,101230.0,0.2814968]
[1746719142314,0.48652312,101250.0,101240.0,0.1975207]
[1746719142519,0.48652312,101250.0,101230.0,0.2962959]
[1746719142819,0.12572312,101250.0,101240.0,0.1975207]
[1746719143118,0.51140324,101260.0,101250.0,0.1975012]
[1746719143318,0.80764564,101260.0,101230.0,0.59261927]
[1746719143520,0.80764564,101260.0,101240.0,0.1481352]
[1746719143521,0.75331154,101260.0,101240.0,0.1481352]
[1746719143720,0.0987577,101250.0,101230.0,0.17533492]
[1746719144018,0.0987577,101250.0,101240.0,0.0987543]
[1746719144019,0.3608,101250.0,101240.0,0.0987543]
[1746719144215,0.5632612,101250.0,101240.0,0.2468822]
[1746719144413,0.5632612,101250.0,101240.0,0.2122703]
[1746719144616,0.36576,101250.0,101240.0,0.2122703]
[1746719144815,0.5632612,101250.0,101240.0,0.2122703]
[1746719145118,0.2024612,101250.0,101240.0,0.2142703]
[1746719145308,0.2024612,101250.0,101240.0,0.2162703]
[1746719145514,0.00504463,101250.0,101240.0,0.2162703]
[1746719145711,0.5632612,101250.0,101240.0,0.2162703]
[1746719145917,0.00496,101250.0,101240.0,0.1668913]
[1746719146119,0.00496,101250.0,101240.0,0.35032987]
[1746719146321,0.00496,101250.0,101240.0,1.07906681]
[1746719146517,0.55974486,101270.0,101260.0,0.1974817]
[1746719146717,0.55974486,101270.0,101260.0,0.05004196]
[1746719147117,0.55974486,101270.0,101260.0,0.24752366]
[1746719147313,0.8289098,101270.0,101260.0,0.03004704]
[1746719147517,0.8289098,101270.0,101260.0,0.0146091]
[1746719147711,0.56174486,101270.0,101260.0,0.2120908]
[1746719148022,0.56274486,101270.0,101260.0,0.0146091]
[1746719148521,0.56274486,101270.0,101260.0,0.2120908]
[1746719148923,0.56174486,101270.0,101260.0,0.2120908]
[1746719149118,0.56174486,101270.0,101260.0,0.0166091]
[1746719149419,0.8309098,101270.0,101260.0,0.0166091]
[1746719149610,1.20048646,101270.0,101260.0,0.0146091]
[1746719149823,1.2004098,101270.0,101260.0,0.0146091]
[1746719150325,0.92924486,101270.0,101260.0,0.0146091]
[1746719151026,1.0009476,101270.0,101230.0,0.1852]
[1746719151219,0.1975402,101230.0,101220.0,0.00197585]
[1746719151520,0.1975402,101230.0,101220.0,0.21957701]
[1746719151521,0.5583402,101230.0,101220.0,0.21957701]
[1746719151823,0.3608,101230.0,101220.0,0.19953555]
[1746719152023,0.4595466,101260.0,101230.0,0.0493808]
[1746719152223,1.20488606,101270.0,101250.0,0.0493713]
[1746719152423,1.20985876,101270.0,101260.0,0.1974817]
[1746719152721,1.06174486,101270.0,101260.0,0.1974817]
[1746719152914,0.1974817,101260.0,101250.0,0.3456024]
[1746719153112,0.4595482,101260.0,101240.0,0.0987553]
[1746719153319,0.65949756,101270.0,101260.0,0.1974817]
[1746719153518,1.02029756,101270.0,101260.0,0.1974817]
[1746719153725,0.1974817,101260.0,101250.0,0.4457609]
[1746719153927,0.66049686,101270.0,101260.0,0.1974817]
[1746719154121,0.61112826,101270.0,101260.0,0.5791817]
[1746719154323,0.61121085,101270.0,101260.0,0.5791817]
[1746719154523,0.61112826,101270.0,101260.0,0.5791817]
[1746719154723,0.60912826,101270.0,101260.0,0.3817]
[1746719155028,1.2419932,101270.0,101260.0,0.3817]
[1746719155218,1.2429932,101270.0,101260.0,0.3817]
[1746719155925,0.79262826,101270.0,101260.0,0.5811817]
[1746719156127,0.79262826,101270.0,101260.0,0.3837]
[1746719156318,0.79262826,101270.0,101260.0,0.3817]
[1746719156520,1.0617932,101270.0,101260.0,0.3817]
[1746719156719,0.98992826,101270.0,101260.0,0.3817]
[1746719156918,1.2590932,101270.0,101260.0,0.3817]
[1746719157226,0.98992826,101270.0,101260.0,0.3837]
[1746719157430,1.2590932,101270.0,101260.0,0.3837]
[1746719157819,1.2610932,101270.0,101260.0,0.3817]
[1746719158527,0.1975207,101240.0,101230.0,0.3791402]
[1746719158724,0.3608,101240.0,101230.0,0.59177992]
[1746719158922,0.5583141,101250.0,101240.0,0.1975207]
[1746719159121,0.5583012,101250.0,101240.0,0.3846207]
[1746719159322,0.5583012,101250.0,101240.0,0.1871]
[1746719159720,0.5583012,101250.0,101240.0,0.3846404]
[1746719159924,0.5583012,101250.0,101240.0,0.5820404]
[1746719160123,0.5583012,101250.0,101240.0,0.3845]
[1746719160423,0.5583012,101250.0,101240.0,0.5820404]
[1746719160623,0.3608,101260.0,101250.0,0.1975209]
[1746719160825,0.5583014,101260.0,101250.0,0.3845]
[1746719161132,0.7574014,101260.0,101250.0,0.3845]
[1746719161328,0.9408014,101260.0,101250.0,0.3845]
[1746719162219,1.20996634,101260.0,101250.0,0.3845]
[1746719162419,0.1975404,101240.0,101230.0,0.3791556]
[1746719162617,0.9527372,101250.0,101240.0,0.1975404]
[1746719162817,0.3608,101250.0,101240.0,0.1975404]
[1746719163023,0.6076978,101260.0,101250.0,0.1975209]
[1746719163222,0.9684978,101260.0,101250.0,0.1975209]
[1746719163634,0.9684978,101260.0,101250.0,0.3769]
[1746719164019,0.3608,101260.0,101250.0,0.5744209]
[1746719164430,0.5583014,101260.0,101250.0,0.3769]
[1746719164629,1.18826634,101260.0,101250.0,0.3769]
[1746719165032,1.1153014,101260.0,101250.0,0.5744209]
[1746719165233,0.9178,101260.0,101250.0,0.5764209]
[1746719165432,0.94556566,101270.0,101260.0,0.1975014]
[1746719165629,0.36228266,101270.0,101260.0,0.5786014]
[1746719165937,0.36228266,101270.0,101260.0,0.94651833]
[1746719166131,0.00148266,101270.0,101260.0,1.30411833]
[1746719166326,0.00148266,101270.0,101260.0,1.03495339]
[1746719166528,0.00148266,101270.0,101260.0,1.39575339]
[1746719166925,0.00148266,101270.0,101260.0,1.66491833]
[1746719167130,0.00148266,101270.0,101260.0,1.49691833]
[1746719167330,0.001,101280.0,101270.0,0.1974819]
[1746719167526,0.67278544,101290.0,101280.0,0.1974624]
[1746719167729,0.00151734,101290.0,101280.0,0.1974624]
[1746719167938,0.00151734,101290.0,101280.0,0.5785624]
[1746719168842,0.56076024,101290.0,101280.0,0.3811]
[1746719169037,0.1974819,101270.0,101260.0,0.1916]
[1746719169237,0.5582819,101270.0,101260.0,0.5827014]
[1746719169439,0.5582819,101270.0,101260.0,0.5807014]
[1746719169639,0.9903464,101280.0,101270.0,0.1974819]
[1746719169840,0.61013674,101290.0,101280.0,0.1974624]
[1746719170029,0.38521734,101290.0,101280.0,0.1974624]
[1746719170234,0.58266024,101290.0,101280.0,0.5806624]
[1746719170537,0.00251734,101290.0,101280.0,0.5806624]
[1746719170740,0.56076024,101290.0,101280.0,0.5806624]
[1746719170937,0.58266024,101290.0,101280.0,0.5806624]
[1746719171138,0.94546024,101290.0,101280.0,0.3832]
[1746719171450,0.2962462,101270.0,101250.0,0.0987572]
[1746719171647,0.3608,101270.0,101260.0,0.6216726]
[1746719171853,0.5582819,101270.0,101260.0,0.6236726]
[1746719172051,0.7435819,101270.0,101260.0,0.3768]
[1746719172355,0.9290819,101270.0,101260.0,0.3748]
[1746719172554,0.9290819,101270.0,101260.0,0.1892]
[1746719172857,0.9300819,101270.0,101260.0,0.1912]
[1746719173057,1.19924684,101270.0,101260.0,0.1912]
[1746719173254,0.9300819,101270.0,101260.0,0.3887014]
[1746719173445,0.1863,101270.0,101260.0,0.5730014]
[1746719173651,0.1855,101280.0,101270.0,0.1974819]
[1746719173845,0.1855,101280.0,101270.0,0.5729819]
[1746719174050,0.3708,101280.0,101270.0,0.5729819]
[1746719174452,0.08536501,101300.0,101290.0,0.1974429]
[1746719174655,0.0337604,101300.0,101290.0,0.21287509]
[1746719174859,0.03383348,101300.0,101290.0,0.22745851]
[1746719175055,0.03383348,101300.0,101290.0,0.96995663]
[1746719175056,0.0337604,101300.0,101290.0,0.96995663]
[1746719175247,0.0337604,101300.0,101290.0,1.23912157]
[1746719175450,0.0337604,101300.0,101290.0,1.33784157]
[1746719176046,0.0289604,101300.0,101290.0,1.23667663]
[1746719176362,0.0022621,101300.0,101290.0,1.50584157]
[1746719176552,0.09986986,101310.0,101300.0,0.1974234]
[1746719176748,0.84211973,101340.0,101330.0,0.197365]
[1746719176749,0.0100325,101340.0,101330.0,0.197365]
[1746719177058,0.07554126,101350.0,101340.0,0.1973455]
[1746719177059,0.15033828,101350.0,101340.0,0.1973455]
[1746719177258,0.15033828,101350.0,101340.0,1.03594075]
[1746719177652,0.15033828,101350.0,101340.0,0.76677581]
[1746719177849,0.70854891,101350.0,101340.0,0.40597581]
[1746719178247,1.08786428,101350.0,101340.0,0.40597581]
[1746719178448,0.51113828,101350.0,101340.0,0.42050359]
[1746719178649,0.51113828,101350.0,101340.0,0.68966138]
[1746719178851,0.15033828,101350.0,101340.0,1.05046138]
[1746719179058,0.15033828,101350.0,101340.0,0.7758056]
[1746719179360,0.15033828,101350.0,101340.0,0.77076733]
[1746719179958,0.15033828,101350.0,101340.0,1.24038979]
[1746719180358,0.5767088,101360.0,101350.0,0.197326]
[1746719180557,0.3794,101360.0,101350.0,1.00034659]
[1746719180762,0.003,101380.0,101370.0,0.1972871]
[1746719181065,0.1981,101380.0,101370.0,0.95260893]
[1746719181257,0.1981,101380.0,101370.0,0.96341784]
[1746719181457,1.02533264,101380.0,101370.0,0.22323074]
[1746719181663,0.9392677,101380.0,101370.0,0.22351784]
[1746719181858,0.3812,101380.0,101370.0,0.23788567]
[1746719182057,0.9392677,101380.0,101370.0,0.43488567]
[1746719182458,0.9392677,101380.0,101370.0,0.42051784]
[1746719182657,0.5814677,101380.0,101370.0,0.42051784]
[1746719182858,0.9422677,101380.0,101370.0,0.42051784]
[1746719183058,0.41265244,101400.0,101390.0,0.1972482]
[1746719183357,0.1992093,101410.0,101400.0,0.1972287]
[1746719183557,0.1992093,101410.0,101400.0,0.19752183]
[1746719183753,0.3961,101410.0,101400.0,0.5661287]
[1746719183959,0.3961,101410.0,101400.0,0.58154348]
[1746719184662,0.5933093,101410.0,101400.0,0.58154348]
[1746719184859,0.3961,101410.0,101400.0,0.58154348]
[1746719185168,0.4031,101410.0,101400.0,0.38431478]
[1746719185358,0.9611093,101410.0,101400.0,0.58154348]
[1746719185555,0.9611093,101410.0,101400.0,0.01541478]
[1746719185855,0.9541093,101410.0,101400.0,0.01541478]
[1746719186062,0.5933093,101410.0,101400.0,0.21564348]
[1746719186256,0.3961,101410.0,101400.0,0.57644348]
[1746719186566,0.3961,101410.0,101400.0,0.94834348]
[1746719186757,0.1971,101410.0,101400.0,1.21750842]
[1746719186957,0.1971,101410.0,101400.0,0.94834348]
[1746719187255,0.5579,101410.0,101400.0,0.58754245]
[1746719187662,0.9463093,101410.0,101400.0,0.20511375]
[1746719187858,0.5855093,101410.0,101400.0,0.20511375]
[1746719188064,0.9463093,101410.0,101400.0,0.20411375]
[1746719188258,0.9463093,101410.0,101400.0,0.02341375]
[1746719188667,0.9463093,101410.0,101400.0,0.02041375]
[1746719188966,0.3883,101410.0,101400.0,0.85606356]
[1746719189162,0.547,101430.0,101420.0,0.1971899]
[1746719189368,0.3779,101430.0,101420.0,0.84257065]
[1746719189564,0.1867,101430.0,101420.0,0.84257065]
[1746719189753,0.1867,101430.0,101420.0,0.96500571]
[1746719189959,0.001,101430.0,101420.0,1.34380386]
[1746719190166,0.001,101430.0,101420.0,0.97604293]
[1746719190354,0.1829,101430.0,101420.0,0.77885303]
[1746719190559,0.1829,101430.0,101420.0,0.40701581]
[1746719190560,0.9254704,101430.0,101420.0,0.40701581]
[1746719190762,0.3675,101430.0,101420.0,0.77030571]
[1746719190969,0.3695,101430.0,101420.0,0.77030571]
[1746719191169,0.3695,101430.0,101420.0,0.40771581]
[1746719191365,0.3695,101430.0,101420.0,0.96570571]
[1746719191669,0.7303,101430.0,101420.0,0.60490571]
[1746719191863,0.7283,101430.0,101420.0,0.60490571]
[1746719192061,0.7263,101430.0,101420.0,0.21531581]
[1746719192261,0.9234704,101430.0,101420.0,0.41250571]
[1746719192465,1.19263534,101430.0,101420.0,0.01841581]
[1746719192671,1.37323534,101430.0,101420.0,0.003]
[1746719193265,0.2958348,101410.0,101390.0,0.3849]
[1746719193471,0.7521287,101400.0,101390.0,0.01541553]
[1746719193673,0.1972528,101390.0,101380.0,0.01479]
[1746719193973,0.5591,101390.0,101380.0,0.22747599]
[1746719194174,0.3924,101390.0,101380.0,0.22747599]
[1746719194467,0.3924,101390.0,101380.0,0.21268599]
[1746719194966,0.1983,101390.0,101380.0,0.23818989]
[1746719195168,0.1983,101390.0,101380.0,0.61298989]
[1746719195574,0.3905,101390.0,101380.0,0.40120363]
[1746719195871,0.5877482,101390.0,101380.0,0.38582067]
[1746719196072,0.5877482,101390.0,101380.0,0.3930384]
[1746719196375,1.21871314,101390.0,101380.0,0.01]
[1746719196567,0.1972677,101380.0,101370.0,0.00345249]
[1746719196764,1.20643264,101380.0,101370.0,0.00345249]
[1746719197373,0.9372677,101380.0,101370.0,0.00345249]
[1746719197569,0.74,101380.0,101370.0,0.20073959]
[1746719197770,0.9372677,101380.0,101370.0,0.00545249]
[1746719197967,0.74,101380.0,101370.0,0.20273959]
[1746719198279,0.9372677,101380.0,101370.0,0.00545249]
[1746719198572,0.9372677,101380.0,101370.0,0.01145249]
[1746719198573,0.9382677,101380.0,101370.0,0.01145249]
[1746719198769,0.9382677,101380.0,101370.0,0.02687339]
[1746719199167,0.9382677,101380.0,101370.0,0.02687377]
[1746719199368,1.20643264,101380.0,101370.0,0.02287377]
[1746719199569,1.20643264,101380.0,101370.0,0.22016087]
[1746719199570,0.74,101380.0,101370.0,0.22016087]
[1746719199875,0.9372677,101380.0,101370.0,0.0453387]
[1746719200870,0.9372677,101380.0,101370.0,0.04533814]
[1746719201172,0.9372677,101380.0,101370.0,0.03018793]
[1746719201575,0.9372677,101380.0,101370.0,0.04120662]
[1746719201772,1.20643264,101380.0,101370.0,0.04120662]
[1746719201972,1.20643264,101380.0,101370.0,0.01476721]
[1746719202370,1.20643264,101380.0,101370.0,0.02996683]
[1746719202566,1.20643264,101380.0,101370.0,0.04538924]
[1746719202772,1.20643264,101380.0,101370.0,0.05634033]
[1746719202973,0.9372677,101380.0,101370.0,0.25162743]
[1746719203174,0.9392677,101380.0,101370.0,0.05434033]
[1746719203473,0.9412677,101380.0,101370.0,0.05234033]
[1746719203675,1.21043264,101380.0,101370.0,0.05234033]
[1746719204171,1.20943264,101380.0,101370.0,0.05234033]
[1746719204376,0.3822,101380.0,101370.0,0.24962713]
[1746719204566,0.003,101380.0,101370.0,0.62752713]
[1746719204766,0.3648,101380.0,101370.0,0.62752713]
[1746719204978,0.5610677,101380.0,101370.0,0.43024003]
[1746719205168,1.19093264,101380.0,101370.0,0.05234003]
[1746719205470,1.73953264,101380.0,101370.0,0.05234003]